[Event "St Kilda East and Caulfield Chess Club T3 2025 Under 1600 Mondays"]
[Site "St Kilda East, Australia"]
[Date "2025.08.11"]
[Round "3.4"]
[White "Nakada, Kazu"]
[Black "Salama, John"]
[Result "1-0"]
[TimeControl "60 minutes per player per game plus 10 secionds per move from move one"]
[WhiteElo "605"]
[BlackElo "1296"]

1. e4 {[%clk 01:00:07]} {[%emt 00:00:04]} d5 {[%clk 01:00:02]} {[%emt
00:00:06]} 2. exd5 {[%clk 01:00:10]} {[%emt 00:00:07]} Qxd5 {[%clk 01:00:06]}
{[%emt 00:00:06]} 3. Nc3 {[%clk 01:00:15]} {[%emt 00:00:05]} Qa5 {[%clk
01:00:05]} {[%emt 00:00:10]} 4. Nf3 {[%clk 01:00:20]} {[%emt 00:00:06]} Nf6
{[%clk 00:59:42]} {[%emt 00:00:32]} 5. d4 {[%clk 01:00:22]} {[%emt 00:00:08]}
Bf5 {[%clk 00:59:00]} {[%emt 00:00:53]} 6. Bd2 {[%clk 01:00:19]} {[%emt
00:00:14]} c6 {[%clk 00:58:13]} {[%emt 00:00:58]} 7. Bc4 {[%clk 01:00:04]}
{[%emt 00:00:25]} e6 {[%clk 00:57:35]} {[%emt 00:00:48]} 8. O-O {[%clk
00:59:18]} {[%emt 00:00:56]} Qc7 {[%clk 00:56:32]} {[%emt 00:01:13]} 9. Ne5
{[%clk 00:58:11]} {[%emt 00:01:17]} Nbd7 {[%clk 00:55:10]} {[%emt 00:01:31]} 10.
Bf4 {[%clk 00:57:55]} {[%emt 00:00:25]} Bd6 {[%clk 00:52:07]} {[%emt 00:03:13]}
11. Nxd7 {[%clk 00:57:36]} {[%emt 00:00:30]} Bxf4 {[%clk 00:50:59]} {[%emt
00:01:18]} 12. Nxf6+ {[%clk 00:57:36]} {[%emt 00:00:10]} gxf6 {[%clk 00:50:56]}
{[%emt 00:00:13]} 13. g3 {[%clk 00:57:36]} {[%emt 00:00:10]} Bd6 {[%clk
00:48:25]} {[%emt 00:02:40]} 14. Bd3 {[%clk 00:57:26]} {[%emt 00:00:21]} Bh3
{[%clk 00:43:23]} {[%emt 00:05:12]} 15. Re1 {[%clk 00:57:21]} {[%emt 00:00:14]}
h5 {[%clk 00:42:58]} {[%emt 00:00:35]} 16. Qf3 {[%clk 00:55:29]} {[%emt
00:02:02]} Be7 {[%clk 00:38:06]} {[%emt 00:05:02]} 17. Ne4 {[%clk 00:54:36]}
{[%emt 00:01:04]} f5 {[%clk 00:37:40]} {[%emt 00:00:36]} 18. Nd2 {[%emt
00:00:45]} O-O-O {[%clk 00:37:23]} {[%emt 00:00:25]} 19. c3 {[%clk 00:52:45]}
{[%emt 00:01:29]} h4 {[%clk 00:29:24]} {[%emt 00:08:08]} 20. Nc4 {[%clk
00:52:40]} {[%emt 00:00:17]} hxg3 {[%clk 00:28:52]} {[%emt 00:00:40]} 21. fxg3
{[%clk 00:52:37]} {[%emt 00:00:13]} Rdg8 {[%clk 00:24:06]} {[%emt 00:04:55]} 22.
Ne5 {[%clk 00:51:46]} {[%emt 00:01:01]} Rh7 {[%clk 00:21:48]} {[%emt 00:02:28]}
23. Nxf7 {[%clk 00:50:50]} {[%emt 00:01:06]} Bg4 {[%clk 00:20:03]} {[%emt
00:01:54]} 24. Qe3 {[%clk 00:50:24]} {[%emt 00:00:37]} f4 {[%clk 00:18:53]}
{[%emt 00:01:20]} 25. Bxh7 {[%clk 00:47:17]} {[%emt 00:03:17]} fxe3 {[%clk
00:18:26]} {[%emt 00:00:38]} 26. Bxg8 {[%clk 00:47:17]} {[%emt 00:00:09]} e2
{[%clk 00:13:28]} {[%emt 00:05:09]} 27. Ne5 {[%clk 00:47:02]} {[%emt 00:00:25]}
Bh5 {[%clk 00:10:43]} {[%emt 00:02:55]} 28. Bxe6+ {[%clk 00:46:57]} {[%emt
00:00:15]} Kd8 {[%clk 00:09:54]} {[%emt 00:00:59]} 29. g4 {[%clk 00:46:54]}
{[%emt 00:00:14]} Qd6 {[%clk 00:08:29]} {[%emt 00:01:32]} 30. gxh5 {[%clk
00:46:17]} {[%emt 00:00:50]} Qxe6 {[%clk 00:08:29]} {[%emt 00:00:10]} 31. Rxe2
{[%clk 00:46:14]} {[%emt 00:00:11]} Qg8+ {[%clk 00:07:28]} {[%emt 00:01:12]} 32.
Ng6 {[%clk 00:46:02]} {[%emt 00:00:22]} Qh7 {[%clk 00:06:11]} {[%emt 00:01:28]}
33. Nxe7 {[%clk 00:45:30]} {[%emt 00:00:42]} Qxh5 {[%clk 00:06:12]} {[%emt
00:00:08]} 34. Rae1 {[%clk 00:45:23]} {[%emt 00:00:17]} Qg4+ {[%clk 00:05:56]}
{[%emt 00:00:26]} 35. Rg2 {[%clk 00:45:21]} {[%emt 00:00:12]} Qf3 {[%clk
00:05:18]} {[%emt 00:00:47]} 36. h4 {[%clk 00:44:27]} {[%emt 00:01:04]} Qh3
{[%clk 00:04:56]} {[%emt 00:00:31]} 37. Re4 {[%clk 00:43:35]} {[%emt 00:01:04]}
Qd3 {[%clk 00:03:44]} {[%emt 00:01:22]} 38. Ree2 {[%clk 00:42:09]} {[%emt
00:01:36]} Qh3 {[%clk 00:03:36]} {[%emt 00:00:18]} 39. Ng6 {[%clk 00:41:53]}
{[%emt 00:00:25]} Qf5 {[%clk 00:03:10]} {[%emt 00:00:36]} 40. Ref2 {[%clk
00:41:04]} {[%emt 00:00:58]} Qb1+ {[%clk 00:03:02]} {[%emt 00:00:20]} 41. Kh2
{[%clk 00:40:32]} {[%emt 00:00:42]} Qxa2 {[%clk 00:03:04]} {[%emt 00:00:08]} 42.
h5 {[%clk 00:40:24]} {[%emt 00:00:18]} Qd5 {[%clk 00:02:41]} {[%emt 00:00:32]}
43. h6 {[%clk 00:40:13]} {[%emt 00:00:22]} Qh5+ {[%clk 00:02:42]} {[%emt
00:00:09]} 44. Kg1 {[%clk 00:39:56]} {[%emt 00:00:27]} Qxh6 {[%clk 00:02:46]}
{[%emt 00:00:06]} 45. Rf8+ {[%clk 00:39:31]} {[%emt 00:00:34]} Kc7 {[%clk
00:02:40]} {[%emt 00:00:17]} 46. Rf7+ {[%clk 00:39:21]} {[%emt 00:00:19]} Kb6
{[%clk 00:02:31]} {[%emt 00:00:19]} 47. Ne5 {[%clk 00:39:01]} {[%emt 00:00:31]}
Qc1+ {[%clk 00:02:18]} {[%emt 00:00:22]} 48. Rf1 {[%clk 00:38:43]} {[%emt
00:00:27]} Qe3+ {[%clk 00:02:18]} {[%emt 00:00:11]} 49. Rff2 {[%clk 00:37:20]}
{[%emt 00:01:34]} Qc1+ {[%clk 00:02:15]} {[%emt 00:00:12]} 50. Kh2 {[%clk
00:37:23]} {[%emt 00:00:07]} Qh6+ {[%clk 00:02:14]} {[%emt 00:00:12]} 51. Kg3
{[%clk 00:37:24]} {[%emt 00:00:08]} Qg5+ {[%clk 00:02:14]} {[%emt 00:00:10]} 52.
Ng4 {[%clk 00:36:59]} {[%emt 00:00:36]} a6 {[%clk 00:01:40]} {[%emt 00:00:46]}
53. c4 {[%clk 00:36:24]} {[%emt 00:00:44]} a5 {[%clk 00:00:54]} {[%emt
00:00:57]} 54. c5+ {[%clk 00:35:49]} {[%emt 00:00:44]} Kb5 {[%clk 00:00:52]}
{[%emt 00:00:11]} 55. Kh2 {[%clk 00:35:36]} {[%emt 00:00:23]} Qg8 {[%clk
00:00:39]} {[%emt 00:00:24]} 56. b3 {[%clk 00:35:13]} {[%emt 00:00:34]} Qd5
{[%clk 00:00:23]} {[%emt 00:00:25]} 57. Rf4 {[%clk 00:31:53]} {[%emt 00:03:30]}
Qxb3 {[%clk 00:00:20]} {[%emt 00:00:13]} 58. Rg3 {[%clk 00:31:54]} {[%emt
00:00:07]} Qb2+ {[%clk 00:00:12]} {[%emt 00:00:20]} 59. Kh3 {[%clk 00:31:50]}
{[%emt 00:00:14]} a4 {[%clk 00:00:21]} {[%emt 00:00:02]} 60. Rg2 {[%clk
00:31:31]} {[%emt 00:00:29]} Qc3+ {[%clk 00:00:26]} {[%emt 00:00:04]} 61. Rg3
{[%clk 00:31:19]} {[%emt 00:00:23]} Qb2 {[%clk 00:00:32]} {[%emt 00:00:04]} 62.
Rf7 {[%clk 00:30:39]} {[%emt 00:00:51]} Ka6 {[%clk 00:00:28]} {[%emt 00:00:14]}
63. Rd3 {[%clk 00:29:43]} {[%emt 00:01:07]} a3 {[%clk 00:00:24]} {[%emt
00:00:13]} 64. Rf8 {[%clk 00:29:35]} {[%emt 00:00:18]} Ka7 {[%clk 00:00:29]}
{[%emt 00:00:05]} 65. Rf1 {[%clk 00:29:10]} {[%emt 00:00:34]} Qe2 {[%clk
00:00:19]} {[%emt 00:00:22]} 66. Rdd1 {[%clk 00:28:58]} {[%emt 00:00:21]} a2
{[%clk 00:00:21]} {[%emt 00:00:08]} 67. Ne5 {[%clk 00:28:43]} {[%emt 00:00:25]}
Qe3+ {[%clk 00:00:26]} {[%emt 00:00:05]} 68. Kg4 {[%clk 00:28:33]} {[%emt
00:00:19]} Qe2+ {[%clk 00:00:33]} {[%emt 00:00:04]} 69. Kf5 {[%clk 00:28:27]}
{[%emt 00:00:16]} Qh5+ {[%clk 00:00:30]} {[%emt 00:00:13]} 70. Ke4 {[%clk
00:28:35]} {[%emt 00:00:03]} Qe2+ {[%clk 00:00:37]} {[%emt 00:00:03]} 71. Kf4
{[%clk 00:28:33]} {[%emt 00:00:11]} Kb8 {[%clk 00:00:40]} {[%emt 00:00:08]} 72.
Nd7+ {[%clk 00:28:30]} {[%emt 00:00:13]} Kc7 {[%clk 00:00:46]} {[%emt
00:00:04]} 73. Nb6 {[%clk 00:28:22]} {[%emt 00:00:18]} Qh2+ {[%clk 00:00:39]}
{[%emt 00:00:16]} 74. Ke3 {[%clk 00:28:15]} {[%emt 00:00:16]} Qb2 {[%clk
00:00:40]} {[%emt 00:00:09]} 75. Rf7+ {[%clk 00:28:14]} {[%emt 00:00:11]} Kb8
{[%clk 00:00:45]} {[%emt 00:00:06]} 76. Rf8+ {[%clk 00:28:22]} {[%emt
00:00:03]} Kc7 {[%clk 00:00:52]} {[%emt 00:00:03]} 77. Rc8# {[%clk 00:28:18]}
{[%emt 00:00:08]} 1-0

[Event "St Kilda East and Caulfield Chess Club T3 2025 Under 1600 Mondays"]
[Site "St Kilda East, Australia"]
[Date "2025.08.11"]
[Round "3.6"]
[White "Karboulahanos, Kris"]
[Black "Shore, Isaac"]
[Result "1-0"]
[TimeControl "60 minutes per player per game plus 10 secionds per move from move one"]
[WhiteElo "1029"]
[BlackElo "562"]

1. e4 {[%clk 01:00:07]} {[%emt 00:00:02]} c5 {[%clk 01:00:00]} {[%emt
00:00:11]} 2. c3 {[%clk 01:00:00]} {[%emt 00:00:17]} Nf6 {[%clk 00:59:57]}
{[%emt 00:00:13]} 3. e5 {[%clk 00:59:40]} {[%emt 00:00:30]} Nd5 {[%clk
00:59:57]} {[%emt 00:00:10]} 4. d4 {[%clk 00:59:44]} {[%emt 00:00:05]} cxd4
{[%clk 00:59:29]} {[%emt 00:00:38]} 5. cxd4 {[%clk 00:59:48]} {[%emt 00:00:06]}
Nc6 {[%clk 00:59:34]} {[%emt 00:00:05]} 6. Nc3 {[%clk 00:59:53]} {[%emt
00:00:05]} e6 {[%clk 00:58:37]} {[%emt 00:01:07]} 7. a3 {[%clk 00:59:43]}
{[%emt 00:00:20]} d6 {[%clk 00:58:07]} {[%emt 00:00:40]} 8. Nxd5 {[%clk
00:59:42]} {[%emt 00:00:11]} exd5 {[%clk 00:57:38]} {[%emt 00:00:39]} 9. exd6
{[%clk 00:58:48]} {[%emt 00:01:04]} Bxd6 {[%clk 00:57:36]} {[%emt 00:00:11]} 10.
Bb5 {[%clk 00:58:54]} {[%emt 00:00:04]} Qe7+ {[%clk 00:57:07]} {[%emt
00:00:39]} 11. Ne2 {[%clk 00:58:51]} {[%emt 00:00:13]} O-O {[%clk 00:56:28]}
{[%emt 00:00:49]} 12. O-O {[%clk 00:58:50]} {[%emt 00:00:12]} Qc7 {[%clk
00:55:35]} {[%emt 00:01:03]} 13. f4 {[%clk 00:58:20]} {[%emt 00:00:40]} Bf5
{[%clk 00:55:02]} {[%emt 00:00:43]} 14. Bd3 {[%clk 00:58:13]} {[%emt 00:00:16]}
Ne7 {[%clk 00:53:54]} {[%emt 00:01:18]} 15. Be3 {[%clk 00:57:44]} {[%emt
00:00:39]} Rac8 {[%clk 00:53:23]} {[%emt 00:00:40]} 16. Rc1 {[%clk 00:56:34]}
{[%emt 00:01:20]} Qd7 {[%clk 00:52:45]} {[%emt 00:00:49]} 17. Ng3 {[%clk
00:55:59]} {[%emt 00:00:44]} Rxc1 {[%clk 00:52:33]} {[%emt 00:00:23]} 18. Bxc1
{[%clk 00:55:57]} {[%emt 00:00:12]} Re8 {[%clk 00:51:27]} {[%emt 00:01:16]} 19.
Re1 {[%clk 00:55:39]} {[%emt 00:00:28]} Bxd3 {[%clk 00:49:36]} {[%emt
00:02:01]} 20. Qxd3 {[%clk 00:55:37]} {[%emt 00:00:12]} g6 {[%clk 00:48:49]}
{[%emt 00:00:56]} 21. Bd2 {[%clk 00:54:31]} {[%emt 00:01:16]} Nc6 {[%clk
00:47:53]} {[%emt 00:01:06]} 22. f5 {[%clk 00:54:04]} {[%emt 00:00:38]} Bxg3
{[%clk 00:47:33]} {[%emt 00:00:29]} 23. Rxe8+ {[%clk 00:53:23]} {[%emt
00:00:51]} Qxe8 {[%clk 00:46:53]} {[%emt 00:00:51]} 24. hxg3 {[%clk 00:53:18]}
{[%emt 00:00:15]} Ne7 {[%clk 00:45:45]} {[%emt 00:01:18]} 25. Qe3 {[%clk
00:51:44]} {[%emt 00:01:44]} b6 {[%clk 00:44:10]} {[%emt 00:01:45]} 26. f6
{[%clk 00:51:39]} {[%emt 00:00:16]} Kf8 {[%clk 00:43:02]} {[%emt 00:01:19]} 27.
Qh6+ {[%clk 00:51:35]} {[%emt 00:00:13]} Kg8 {[%clk 00:43:02]} {[%emt
00:00:10]} 28. Qg7# {[%clk 00:51:34]} {[%emt 00:00:11]} 1-0

[Event "St Kilda East and Caulfield Chess Club T3 2025 Under 1600 Mondays"]
[Site "St Kilda East, Australia"]
[Date "2025.08.11"]
[Round "3.2"]
[White "Hennessy, Rob"]
[Black "Budianto, Youshan"]
[Result "1-0"]
[TimeControl "60 minutes per player per game plus 10 secionds per move from move one"]
[WhiteElo "979"]
[BlackElo "1032"]

1. e4 {[%clk 00:57:05]} {[%emt 00:03:05]} e5 {[%clk 00:59:43]} {[%emt
00:00:28]} 2. Nf3 {[%clk 00:57:06]} {[%emt 00:00:09]} Nc6 {[%clk 00:59:48]}
{[%emt 00:00:05]} 3. Bb5 {[%clk 00:57:04]} {[%emt 00:00:11]} a6 {[%clk
00:59:52]} {[%emt 00:00:06]} 4. Ba4 {[%clk 00:57:08]} {[%emt 00:00:06]} b5
{[%clk 00:59:59]} {[%emt 00:00:03]} 5. Bb3 {[%clk 00:57:07]} {[%emt 00:00:11]}
Nf6 {[%clk 00:59:26]} {[%emt 00:00:43]} 6. O-O {[%clk 00:57:03]} {[%emt
00:00:14]} Bc5 {[%clk 00:59:30]} {[%emt 00:00:06]} 7. c3 {[%clk 00:56:43]}
{[%emt 00:00:30]} O-O {[%clk 00:59:27]} {[%emt 00:00:13]} 8. Re1 {[%clk
00:56:36]} {[%emt 00:00:17]} d6 {[%clk 00:59:18]} {[%emt 00:00:19]} 9. d4
{[%clk 00:56:33]} {[%emt 00:00:12]} exd4 {[%clk 00:59:04]} {[%emt 00:00:24]} 10.
cxd4 {[%clk 00:56:18]} {[%emt 00:00:25]} Bb4 {[%clk 00:59:07]} {[%emt
00:00:08]} 11. Nc3 {[%clk 00:55:37]} {[%emt 00:00:50]} Bg4 {[%clk 00:58:58]}
{[%emt 00:00:19]} 12. Re3 {[%clk 00:49:39]} {[%emt 00:06:08]} Bxf3 {[%clk
00:58:43]} {[%emt 00:00:25]} 13. Rxf3 {[%clk 00:46:27]} {[%emt 00:03:22]} Bxc3
{[%clk 00:58:35]} {[%emt 00:00:18]} 14. Rxc3 {[%clk 00:45:19]} {[%emt
00:01:18]} Nxe4 {[%clk 00:58:27]} {[%emt 00:00:18]} 15. Rxc6 {[%clk 00:44:45]}
{[%emt 00:00:44]} Qf6 {[%clk 00:58:17]} {[%emt 00:00:20]} 16. Be3 {[%clk
00:43:44]} {[%emt 00:01:10]} Qe7 {[%clk 00:57:22]} {[%emt 00:01:05]} 17. Rac1
{[%clk 00:42:20]} {[%emt 00:01:34]} Rac8 {[%clk 00:56:43]} {[%emt 00:00:49]} 18.
Qd3 {[%clk 00:38:50]} {[%emt 00:03:39]} Kh8 {[%clk 00:56:05]} {[%emt 00:00:49]}
19. Bc2 {[%clk 00:37:42]} {[%emt 00:01:17]} f5 {[%emt 00:01:01]} 20. Re1 {[%clk
00:35:57]} {[%emt 00:01:53]} Ra8 {[%clk 00:54:06]} {[%emt 00:01:17]} 21. Bd2
{[%clk 00:34:40]} {[%emt 00:01:28]} Qd7 {[%clk 00:53:29]} {[%emt 00:00:48]} 22.
d5 {[%clk 00:32:38]} {[%emt 00:02:12]} Rf6 {[%clk 00:51:58]} {[%emt 00:01:41]}
23. Ba5 {[%clk 00:29:22]} {[%emt 00:03:25]} Nc5 {[%clk 00:49:49]} {[%emt
00:02:20]} 24. Qe3 {[%clk 00:26:35]} {[%emt 00:02:56]} Ne6 {[%clk 00:44:26]}
{[%emt 00:05:33]} 25. Bxf5 {[%clk 00:23:24]} {[%emt 00:03:21]} Rxf5 {[%clk
00:39:56]} {[%emt 00:04:40]} 26. Qxe6 {[%clk 00:22:56]} {[%emt 00:00:38]} Qxe6
{[%clk 00:39:41]} {[%emt 00:00:25]} 27. dxe6 {[%clk 00:21:55]} {[%emt
00:01:11]} 1-0

[Event "St Kilda East and Caulfield Chess Club T3 2025 Under 1600 Mondays"]
[Site "St Kilda East, Australia"]
[Date "2025.08.11"]
[Round "3.3"]
[White "Yu, Brandon"]
[Black "Nash, Paul"]
[Result "0-1"]
[TimeControl "60 minutes per player per game plus 10 secionds per move from move one"]
[WhiteElo "816"]
[BlackElo "1009"]

1. e4 {[%clk 01:00:03]} {[%emt 00:00:07]} e5 {[%clk 01:00:02]} {[%emt
00:00:09]} 2. Nf3 {[%clk 01:00:03]} {[%emt 00:00:10]} Nc6 {[%clk 01:00:05]}
{[%emt 00:00:07]} 3. Bc4 {[%clk 01:00:04]} {[%emt 00:00:09]} Nf6 {[%clk
01:00:05]} {[%emt 00:00:11]} 4. O-O {[%clk 00:59:52]} {[%emt 00:00:21]} Be7
{[%clk 00:59:30]} {[%emt 00:00:45]} 5. Nc3 {[%clk 00:59:53]} {[%emt 00:00:09]}
O-O {[%clk 00:59:17]} {[%emt 00:00:22]} 6. d3 {[%clk 00:59:56]} {[%emt
00:00:07]} d6 {[%clk 00:58:27]} {[%emt 00:01:00]} 7. h3 {[%clk 00:59:44]}
{[%emt 00:00:22]} Na5 {[%clk 00:56:40]} {[%emt 00:01:57]} 8. Bb3 {[%clk
00:59:19]} {[%emt 00:00:35]} Nxb3 {[%clk 00:55:19]} {[%emt 00:01:31]} 9. axb3
{[%clk 00:59:21]} {[%emt 00:00:09]} c6 {[%clk 00:51:48]} {[%emt 00:03:40]} 10.
Re1 {[%clk 00:58:18]} {[%emt 00:01:14]} Qc7 {[%clk 00:49:16]} {[%emt 00:02:41]}
11. d4 {[%clk 00:57:28]} {[%emt 00:01:01]} b5 {[%clk 00:44:47]} {[%emt
00:04:39]} 12. Na2 {[%clk 00:54:58]} {[%emt 00:02:41]} c5 {[%clk 00:40:14]}
{[%emt 00:04:43]} 13. d5 {[%clk 00:54:08]} {[%emt 00:00:59]} a5 {[%clk
00:39:24]} {[%emt 00:01:00]} 14. Bd2 {[%clk 00:53:22]} {[%emt 00:00:56]} c4
{[%clk 00:36:00]} {[%emt 00:03:34]} 15. bxc4 {[%clk 00:52:40]} {[%emt
00:00:52]} Qxc4 {[%clk 00:34:17]} {[%emt 00:01:54]} 16. Bg5 {[%clk 00:51:13]}
{[%emt 00:01:36]} h6 {[%clk 00:32:15]} {[%emt 00:02:12]} 17. Bxf6 {[%clk
00:50:58]} {[%emt 00:00:25]} Bxf6 {[%clk 00:32:16]} {[%emt 00:00:09]} 18. Qd3
{[%clk 00:49:25]} {[%emt 00:01:42]} Qxd3 {[%clk 00:32:01]} {[%emt 00:00:26]} 19.
cxd3 {[%clk 00:49:26]} {[%emt 00:00:09]} Ba6 {[%clk 00:31:53]} {[%emt
00:00:17]} 20. b4 {[%clk 00:48:50]} {[%emt 00:00:47]} Rfc8 {[%clk 00:29:48]}
{[%emt 00:02:11]} 21. bxa5 {[%clk 00:48:07]} {[%emt 00:00:57]} Bd8 {[%clk
00:28:16]} {[%emt 00:01:40]} 22. Nb4 {[%clk 00:48:04]} {[%emt 00:00:14]} Rc3
{[%clk 00:26:20]} {[%emt 00:02:04]} 23. d4 {[%clk 00:46:36]} {[%emt 00:01:40]}
f6 {[%clk 00:25:25]} {[%emt 00:01:05]} 24. Nc6 {[%clk 00:45:35]} {[%emt
00:01:11]} Bc7 {[%clk 00:22:39]} {[%emt 00:02:55]} 25. dxe5 {[%clk 00:44:02]}
{[%emt 00:01:44]} fxe5 {[%clk 00:22:29]} {[%emt 00:00:20]} 26. Nd2 {[%clk
00:44:00]} {[%emt 00:00:11]} Bb7 {[%clk 00:20:45]} {[%emt 00:01:54]} 27. Rec1
{[%clk 00:43:05]} {[%emt 00:01:05]} Rxc1+ {[%clk 00:16:22]} {[%emt 00:04:33]}
28. Rxc1 {[%clk 00:41:57]} {[%emt 00:00:17]} Bxc6 {[%clk 00:15:03]} {[%emt
00:02:30]} 29. Rxc6 {[%clk 00:41:41]} {[%emt 00:00:26]} Bxa5 {[%clk 00:15:03]}
{[%emt 00:00:10]} 30. Nb3 {[%clk 00:41:41]} {[%emt 00:00:10]} Bb4 {[%clk
00:13:19]} {[%emt 00:01:54]} 31. Kh2 {[%emt 00:01:45]} Ra3 {[%emt 00:00:33]} 32.
Nc1 {[%clk 00:39:22]} {[%emt 00:00:12]} Bc5 {[%clk 00:13:04]} {[%emt 00:00:25]}
33. Ne2 {[%clk 00:37:11]} {[%emt 00:02:21]} b4 {[%clk 00:12:21]} {[%emt
00:00:53]} 34. Nc1 {[%clk 00:36:18]} {[%emt 00:01:03]} b3 {[%clk 00:12:00]}
{[%emt 00:00:31]} 35. Nxb3 {[%clk 00:36:20]} {[%emt 00:00:07]} Rxb3 {[%clk
00:12:06]} {[%emt 00:00:04]} 36. f3 {[%clk 00:36:24]} {[%emt 00:00:06]} Kf7
{[%clk 00:11:39]} {[%emt 00:00:38]} 37. Kg3 {[%clk 00:36:15]} {[%emt 00:00:19]}
Ke7 {[%clk 00:11:15]} {[%emt 00:00:34]} 38. Rc7+ {[%clk 00:36:05]} {[%emt
00:00:20]} Kf6 {[%clk 00:11:16]} {[%emt 00:00:05]} 39. Rc6 {[%clk 00:35:42]}
{[%emt 00:00:37]} Rb2 {[%clk 00:10:54]} {[%emt 00:00:32]} 40. Ra6 {[%clk
00:35:04]} {[%emt 00:00:48]} g5 {[%clk 00:10:20]} {[%emt 00:00:43]} 41. Ra8
{[%clk 00:34:22]} {[%emt 00:00:53]} h5 {[%clk 00:09:34]} {[%emt 00:00:56]} 42.
Re8 {[%clk 00:33:44]} {[%emt 00:00:49]} h4+ {[%clk 00:08:47]} {[%emt 00:00:56]}
43. Kh2 {[%clk 00:33:42]} {[%emt 00:00:12]} Bf2 {[%clk 00:07:36]} {[%emt
00:01:20]} 44. g4 {[%clk 00:32:55]} {[%emt 00:00:57]} hxg3+ {[%clk 00:07:23]}
{[%emt 00:00:23]} 45. Kg2 {[%clk 00:32:51]} {[%emt 00:00:14]} Be1+ {[%clk
00:07:12]} {[%emt 00:00:22]} 46. Kf1 {[%clk 00:32:45]} {[%emt 00:00:16]} g2+
{[%clk 00:04:10]} {[%emt 00:03:12]} 47. Kg1 {[%clk 00:32:34]} {[%emt 00:00:21]}
Bc3 {[%clk 00:04:03]} {[%emt 00:00:17]} 48. Re6+ {[%clk 00:32:20]} {[%emt
00:00:24]} Kf7 {[%clk 00:04:05]} {[%emt 00:00:08]} 49. Rxd6 {[%clk 00:32:12]}
{[%emt 00:00:18]} Bd4+ {[%clk 00:04:04]} {[%emt 00:00:10]} 50. Kh2 {[%clk
00:32:08]} {[%emt 00:00:15]} g1=Q# {[%clk 00:04:07]} {[%emt 00:00:08]} 0-1